{"text_format":"1","workbook":"xlsx","n_sheets":9,"sheets":["RF Equipment","Surge Suppressors","Mounts","Construction Details","Equipment Cabinets & Racks","Equipment Platforms","Generators","Towers","Power Equipment"],"not_rendered":{"charts":0,"images":0,"macros":1,"external_links":0,"defined_names":1,"comments":0,"pivot_tables":0},"unopened":[],"bounds":{"document_bytes":16777216,"sheet_cells":100000,"rows_first":2000,"rows_last":500,"rows_between":2000,"halvings":0,"cell_chars":16384,"cell_head_chars":4096},"cells_cut":0,"cells_raw":0,"read":"whole","date_system":"1900"}

{"sheet":"RF Equipment","index":0,"n_rows":100,"n_cols":19,"rows_kept":100,"cut":false,"hidden":false,"merged":[]}
["Antenna Manufacture","Antenna Model","Antenna Block DWG Name",null,"Radio/RRH Manufacture","Radio/RRH Model","Radio/RRH Block DWG Name",null,"TMA Manufacture","TMA Model","TMA Block DWG Name",null,"Combiner/Duplexer Manufacture","Combiner/Duplexer Model","Combiner/Duplexer Block DWG Name",null,"Filter Manufacture","Filter Model","Filter Block DWG Name"]
["ACE","XXQLH-654L8H6-IVT",{"$f":"IF(B2=\"\",\"\",A2&\" \"&B2&\".dwg\")","v":"ACE XXQLH-654L8H6-IVT.dwg"},null,"ALCATEL-LUCENT","B66A RRH4x45 AWS",{"$f":"IF(F2=\"\",\"\",E2&\" \"&F2&\".dwg\")","v":"ALCATEL-LUCENT B66A RRH4x45 AWS.dwg"},null,null,null,{"$f":"IF(J2=\"\",\"\",I2&\" \"&J2&\".dwg\")","v":""},null,null,null,{"$f":"IF(N2=\"\",\"\",M2&\" \"&N2&\".dwg\")","v":""},null,null,null,{"$f":"IF(R2=\"\",\"\",Q2&\" \"&R2&\".dwg\")","v":""}]
["ACE","XXQLH-654L4H8-IVT-V2","ACE XXQLH-654L4H8-IVT-V2.dwg",null,"ALCATEL-LUCENT","B30 RRH4X25 WCS","ALCATEL-LUCENT B30 RRH4X25 WCS.dwg",null,null,null,"",null,null,null,"",null,null,null,""]
["ACE","MA-2L4M-65F6-A12P-HG","ACE MA-2L4M-65F6-A12P-HG.dwg",null,"ALCATEL-LUCENT","RRH2x60 850","ALCATEL-LUCENT RRH2x60 850.dwg",null,null,null,"",null,null,null,"",null,null,null,""]
["ANDREW","HBXX-6516DS-A2M","ANDREW HBXX-6516DS-A2M.dwg",null,"ALCATEL-LUCENT","B25 RRH4X30-PCS","ALCATEL-LUCENT B25 RRH4X30-PCS.dwg",null,null,null,"",null,null,null,"",null,null,null,""]
["CCI","BSA-M65R-BUU-H6","CCI BSA-M65R-BUU-H6.dwg",null,"ERICSSON","RRUS-11","ERICSSON RRUS-11.dwg",null,null,null,"",null,null,null,"",null,null,null,""]
["CCI","DMP65R-BU6E","CCI DMP65R-BU6E.dwg",null,"ERICSSON","RRUS-12","ERICSSON RRUS-12.dwg",null,null,null,"",null,null,null,"",null,null,null,""]
["CCI","HBSA33R-KU8A","CCI HBSA33R-KU8A.dwg",null,"ERICSSON","RRUS-12 A2","ERICSSON RRUS-12 A2.dwg",null,null,null,"",null,null,null,"",null,null,null,""]
["CCI","HBSA-M65R-KU-H8","CCI HBSA-M65R-KU-H8.dwg",null,"ERICSSON","RRUS-32","ERICSSON RRUS-32.dwg",null,null,null,"",null,null,null,"",null,null,null,""]
["CCI","HPA-33R-BUU-H6","CCI HPA-33R-BUU-H6.dwg",null,"ERICSSON","RRUS-A2 MODULE","ERICSSON RRUS-A2 MODULE.dwg",null,null,null,"",null,null,null,"",null,null,null,""]
["CCI","TPA-65R-LCUUUU-H6","CCI TPA-65R-LCUUUU-H6.dwg",null,"ERICSSON","RRUS-2205","ERICSSON RRUS-2205.dwg",null,null,null,"",null,null,null,"",null,null,null,""]
["CCI","TPA65R-BU8D","CCI TPA65R-BU8D.dwg",null,"ERICSSON","RRUS-4415 B30","ERICSSON RRUS-4415 B30.dwg",null,null,null,"",null,null,null,"",null,null,null,""]
["CCI","OPA65R-BU8DA","CCI OPA65R-BU8DA.dwg",null,"ERICSSON","RRUS-4426","ERICSSON RRUS-4426.dwg",null,null,null,"",null,null,null,"",null,null,null,""]
["CELLMAX","CMA-BDLL 6521 E0-6","CELLMAX CMA-BDLL 6521 E0-6.dwg",null,"ERICSSON","RRUS-4449 B5 B12","ERICSSON RRUS-4449 B5 B12.dwg",null,null,null,"",null,null,null,"",null,null,null,""]
["CELLMAX","CMA-BTLBHH-6518-20-20","CELLMAX CMA-BTLBHH-6518-20-20.dwg",null,"ERICSSON","RRUS-8843 B2 B66A","ERICSSON RRUS-8843 B2 B66A.dwg",null,null,null,"",null,null,null,"",null,null,null,""]
["CELLMAX",120826,"CELLMAX 120826.dwg",null,"ERICSSON","RRUS-4478","ERICSSON RRUS-4478.dwg",null,null,null,"",null,null,null,"",null,null,null,""]
["CELLMAX",120716,"CELLMAX 120716.dwg",null,"ERICSSON","RRUS-4478 B14","ERICSSON RRUS-4478 B14.dwg",null,null,null,"",null,null,null,"",null,null,null,""]
["CELLMAX",120726,"CELLMAX 120726.dwg",null,"ERICSSON","RRUS-4478 B12A","ERICSSON RRUS-4478 B12A.dwg",null,null,null,"",null,null,null,"",null,null,null,""]
["CELLMAX",120706,"CELLMAX 120706.dwg",null,"ERICSSON","RRUS-4471 B30","ERICSSON RRUS-4471 B30.dwg",null,null,null,"",null,null,null,"",null,null,null,""]
["COMMSCOPE","NNH4-65C-R6-UPM","COMMSCOPE NNH4-65C-R6-UPM.dwg",null,"ERICSSON","RRUS-4494 B14 B29","ERICSSON RRUS-4494 B14 B29.dwg",null,null,null,"",null,null,null,"",null,null,null,""]
["COMMSCOPE","NNH4-65C-R6-HG","COMMSCOPE NNH4-65C-R6-HG.dwg",null,"ERICSSON","RRUS-4890 B25 B66","ERICSSON RRUS-4890 B25 B66.dwg",null,null,null,"",null,null,null,"",null,null,null,""]
["COMMSCOPE","NNH4-45B-R6","COMMSCOPE NNH4-45B-R6.dwg",null,"ERICSSON","RRUS-4490 B5 B12A","ERICSSON RRUS-4490 B5 B12A.dwg",null,null,null,"",null,null,null,"",null,null,null,""]
["COMMSCOPE","NNH4-65C-R6H4","COMMSCOPE NNH4-65C-R6H4.dwg",null,"NOKIA","AIRSCALE DUAL RRH 4T4R B12 B14 320W AHLBA","NOKIA AIRSCALE DUAL RRH 4T4R B12 B14 320W AHLBA.dwg",null,null,null,"",null,null,null,"",null,null,null,""]
["COMMSCOPE","NNH4-65B-R6H4","COMMSCOPE NNH4-65B-R6H4.dwg",null,"NOKIA","AIRSCALE DUAL RRH 4T4R B25 B66 320W AHFIB","NOKIA AIRSCALE DUAL RRH 4T4R B25 B66 320W AHFIB.dwg",null,null,null,"",null,null,null,"",null,null,null,""]
["COMMSCOPE","DBXNH-6565B-R2M","COMMSCOPE DBXNH-6565B-R2M.dwg",null,"NOKIA","FLEXI RRH 4-PIPE 760 160W FRBI","NOKIA FLEXI RRH 4-PIPE 760 160W FRBI.dwg",null,null,null,"",null,null,null,"",null,null,null,""]
["COMMSCOPE","JAHH-65B-R3B","COMMSCOPE JAHH-65B-R3B.dwg",null,null,null,"",null,null,null,"",null,null,null,"",null,null,null,""]
["COMMSCOPE","JAHH-65C-R3B","COMMSCOPE JAHH-65C-R3B.dwg",null,null,null,"",null,null,null,"",null,null,null,"",null,null,null,""]
["COMMSCOPE","NHH-65B-R2B","COMMSCOPE NHH-65B-R2B.dwg",null,null,null,"",null,null,null,"",null,null,null,"",null,null,null,""]
["COMMSCOPE","NNHH-65B-R4","COMMSCOPE NNHH-65B-R4.dwg",null,null,null,"",null,null,null,"",null,null,null,"",null,null,null,""]
["COMMSCOPE","NNHH-65C-R4","COMMSCOPE NNHH-65C-R4.dwg",null,null,null,"",null,null,null,"",null,null,null,"",null,null,null,""]
["COMMSCOPE","NNH4-65B-R6","COMMSCOPE NNH4-65B-R6.dwg",null,null,null,"",null,null,null,"",null,null,null,"",null,null,null,""]
["COMMSCOPE","NNH4-65C-R6","COMMSCOPE NNH4-65C-R6.dwg",null,null,null,"",null,null,null,"",null,null,null,"",null,null,null,""]
["COMMSCOPE","RV4PX310R-V2","COMMSCOPE RV4PX310R-V2.dwg",null,null,null,"",null,null,null,"",null,null,null,"",null,null,null,""]
["COMMSCOPE","SBJAH4-1D65B-DL",{"$f":"IF(B34=\"\",\"\",A34&\" \"&B34&\".dwg\")","v":"COMMSCOPE SBJAH4-1D65B-DL.dwg"},null,null,null,{"$f":"IF(F34=\"\",\"\",E34&\" \"&F34&\".dwg\")","v":""},null,null,null,"",null,null,null,"",null,null,null,""]
["COMMSCOPE","SBJAH4-1D65C-DL","COMMSCOPE SBJAH4-1D65C-DL.dwg",null,null,null,"",null,null,null,"",null,null,null,"",null,null,null,""]
["COMMSCOPE","SBNHH-1D65A","COMMSCOPE SBNHH-1D65A.dwg",null,null,null,"",null,null,null,"",null,null,null,"",null,null,null,""]
["COMMSCOPE","SBNHH-1D65B","COMMSCOPE SBNHH-1D65B.dwg",null,null,null,"",null,null,null,"",null,null,null,"",null,null,null,""]
["COMMSCOPE","SBNHH-1D65C","COMMSCOPE SBNHH-1D65C.dwg",null,null,null,"",null,null,null,"",null,null,null,"",null,null,null,""]
["COMMSCOPE","FFVV-65B-R3-HG","COMMSCOPE FFVV-65B-R3-HG.dwg",null,null,null,"",null,null,null,"",null,null,null,"",null,null,null,""]
["COMMSCOPE","FFVV-65B-R2-HG","COMMSCOPE FFVV-65B-R2-HG.dwg",null,null,null,"",null,null,null,"",null,null,null,"",null,null,null,""]
["COMMSCOPE","FFV4-65B-R3-HG","COMMSCOPE FFV4-65B-R3-HG.dwg",null,null,null,"",null,null,null,"",null,null,null,"",null,null,null,""]
["ERICSSON","AIR 6472","ERICSSON AIR 6472.dwg",null,null,null,"",null,null,null,"",null,null,null,"",null,null,null,""]
["ERICSSON","AIR 6419 B77D","ERICSSON AIR 6419 B77D.dwg",null,null,null,"",null,null,null,"",null,null,null,"",null,null,null,""]
["ERICSSON","AIR 6419 B77G","ERICSSON AIR 6419 B77G.dwg",null,null,null,"",null,null,null,"",null,null,null,"",null,null,null,""]
["ERICSSON","AIR 6419","ERICSSON AIR 6419.dwg",null,null,null,"",null,null,null,"",null,null,null,"",null,null,null,""]
["ERICSSON","ADVANCED-AIR 28 GHz","ERICSSON ADVANCED-AIR 28 GHz.dwg",null,null,null,"",null,null,null,"",null,null,null,"",null,null,null,""]
["ERICSSON","AIR 3246","ERICSSON AIR 3246.dwg",null,null,null,"",null,null,null,"",null,null,null,"",null,null,null,""]
["ERICSSON ","KRE 101 2586 1K","ERICSSON  KRE 101 2586 1K.dwg",null,null,null,"",null,null,null,"",null,null,null,"",null,null,null,""]
["KATHREIN","800-10799","KATHREIN 800-10799.dwg",null,null,null,"",null,null,null,"",null,null,null,"",null,null,null,""]
["KATHREIN",80010965,"KATHREIN 80010965.dwg",null,null,null,"",null,null,null,"",null,null,null,"",null,null,null,""]
["KATHREIN","840-370799K","KATHREIN 840-370799K.dwg",null,null,null,"",null,null,null,"",null,null,null,"",null,null,null,""]
["KATHREIN","840-370966K","KATHREIN 840-370966K.dwg",null,null,null,"",null,null,null,"",null,null,null,"",null,null,null,""]
["KATHREIN","KRE 101 2487 1K","KATHREIN KRE 101 2487 1K.dwg",null,null,null,"",null,null,null,"",null,null,null,"",null,null,null,""]
["KMW","EPBQ-652L8H8","KMW EPBQ-652L8H8.dwg",null,null,null,"",null,null,null,"",null,null,null,"",null,null,null,""]
["KMW","EPBQ-654L8H6-L2","KMW EPBQ-654L8H6-L2.dwg",null,null,null,"",null,null,null,"",null,null,null,"",null,null,null,""]
["KMW","EPBQ-654L8H8-L2","KMW EPBQ-654L8H8-L2.dwg",null,null,null,"",null,null,null,"",null,null,null,"",null,null,null,""]
["KMW","EPBQ-654L4H8-L2-EPI","KMW EPBQ-654L4H8-L2-EPI.dwg",null,null,null,"",null,null,null,"",null,null,null,"",null,null,null,""]
["KMW","EPBQ-654L8H8-L2-EPI","KMW EPBQ-654L8H8-L2-EPI.dwg",null,null,null,"",null,null,null,"",null,null,null,"",null,null,null,""]
["QUINTEL","QS66510-6","QUINTEL QS66510-6.dwg",null,null,null,"",null,null,null,"",null,null,null,"",null,null,null,""]
["QUINTEL","QS86510-1","QUINTEL QS86510-1.dwg",null,null,null,"",null,null,null,"",null,null,null,"",null,null,null,""]
["QUINTEL","QD6616-4","QUINTEL QD6616-4.dwg",null,null,null,"",null,null,null,"",null,null,null,"",null,null,null,""]
["RFS","APXVAARR24_43-U-NA20","RFS APXVAARR24_43-U-NA20.dwg",null,null,null,"",null,null,null,"",null,null,null,"",null,null,null,""]
["COMMSCOPE","NNH4-65C-R6-V4","COMMSCOPE NNH4-65C-R6-V4.dwg",null,null,null,"",null,null,null,"",null,null,null,"",null,null,null,""]
[null,null,"",null,null,null,"",null,null,null,"",null,null,null,"",null,null,null,""]
[null,null,"",null,null,null,"",null,null,null,"",null,null,null,"",null,null,null,""]
[null,null,{"$f":"IF(B66=\"\",\"\",A66&\" \"&B66&\".dwg\")","v":""},null,null,null,{"$f":"IF(F66=\"\",\"\",E66&\" \"&F66&\".dwg\")","v":""},null,null,null,{"$f":"IF(J66=\"\",\"\",I66&\" \"&J66&\".dwg\")","v":""},null,null,null,{"$f":"IF(N66=\"\",\"\",M66&\" \"&N66&\".dwg\")","v":""},null,null,null,{"$f":"IF(R66=\"\",\"\",Q66&\" \"&R66&\".dwg\")","v":""}]
[null,null,"",null,null,null,"",null,null,null,"",null,null,null,"",null,null,null,""]
[null,null,"",null,null,null,"",null,null,null,"",null,null,null,"",null,null,null,""]
[null,null,"",null,null,null,"",null,null,null,"",null,null,null,"",null,null,null,""]
[null,null,"",null,null,null,"",null,null,null,"",null,null,null,"",null,null,null,""]
[null,null,"",null,null,null,"",null,null,null,"",null,null,null,"",null,null,null,""]
[null,null,"",null,null,null,"",null,null,null,"",null,null,null,"",null,null,null,""]
[null,null,"",null,null,null,"",null,null,null,"",null,null,null,"",null,null,null,""]
[null,null,"",null,null,null,"",null,null,null,"",null,null,null,"",null,null,null,""]
[null,null,"",null,null,null,"",null,null,null,"",null,null,null,"",null,null,null,""]
[null,null,"",null,null,null,"",null,null,null,"",null,null,null,"",null,null,null,""]
[null,null,"",null,null,null,"",null,null,null,"",null,null,null,"",null,null,null,""]
[null,null,"",null,null,null,"",null,null,null,"",null,null,null,"",null,null,null,""]
[null,null,"",null,null,null,"",null,null,null,"",null,null,null,"",null,null,null,""]
[null,null,"",null,null,null,"",null,null,null,"",null,null,null,"",null,null,null,""]
[null,null,"",null,null,null,"",null,null,null,"",null,null,null,"",null,null,null,""]
[null,null,"",null,null,null,"",null,null,null,"",null,null,null,"",null,null,null,""]
[null,null,"",null,null,null,"",null,null,null,"",null,null,null,"",null,null,null,""]
[null,null,"",null,null,null,"",null,null,null,"",null,null,null,"",null,null,null,""]
[null,null,"",null,null,null,"",null,null,null,"",null,null,null,"",null,null,null,""]
[null,null,"",null,null,null,"",null,null,null,"",null,null,null,"",null,null,null,""]
[null,null,"",null,null,null,"",null,null,null,"",null,null,null,"",null,null,null,""]
[null,null,"",null,null,null,"",null,null,null,"",null,null,null,"",null,null,null,""]
[null,null,"",null,null,null,"",null,null,null,"",null,null,null,"",null,null,null,""]
[null,null,"",null,null,null,"",null,null,null,"",null,null,null,"",null,null,null,""]
[null,null,"",null,null,null,"",null,null,null,"",null,null,null,"",null,null,null,""]
[null,null,"",null,null,null,"",null,null,null,"",null,null,null,"",null,null,null,""]
[null,null,"",null,null,null,"",null,null,null,"",null,null,null,"",null,null,null,""]
[null,null,"",null,null,null,"",null,null,null,"",null,null,null,"",null,null,null,""]
[null,null,"",null,null,null,"",null,null,null,"",null,null,null,"",null,null,null,""]
[null,null,"",null,null,null,"",null,null,null,"",null,null,null,"",null,null,null,""]
[null,null,"",null,null,null,"",null,null,null,"",null,null,null,"",null,null,null,""]
[null,null,{"$f":"IF(B98=\"\",\"\",A98&\" \"&B98&\".dwg\")","v":""},null,null,null,{"$f":"IF(F98=\"\",\"\",E98&\" \"&F98&\".dwg\")","v":""},null,null,null,"",null,null,null,"",null,null,null,""]
[null,null,{"$f":"IF(B99=\"\",\"\",A99&\" \"&B99&\".dwg\")","v":""},null,null,null,{"$f":"IF(F99=\"\",\"\",E99&\" \"&F99&\".dwg\")","v":""},null,null,null,"",null,null,null,"",null,null,null,""]
[null,null,{"$f":"IF(B100=\"\",\"\",A100&\" \"&B100&\".dwg\")","v":""},null,null,null,{"$f":"IF(F100=\"\",\"\",E100&\" \"&F100&\".dwg\")","v":""},null,null,null,"",null,null,null,"",null,null,null,""]

{"sheet":"Surge Suppressors","index":1,"n_rows":100,"n_cols":3,"rows_kept":100,"cut":false,"hidden":false,"merged":[]}
["Surge Suppressor Manufacture","Surge Suppressor Model","Surge Suppressor DWG Name"]
["RAYCAP","DC6-48-60-18-8F",{"$f":"IF(B2=\"\",\"\",A2&\" \"&B2&\".dwg\")","v":"RAYCAP DC6-48-60-18-8F.dwg"}]
[null,null,""]
[null,null,""]
[null,null,""]
[null,null,""]
[null,null,""]
[null,null,""]
[null,null,""]
[null,null,""]
[null,null,""]
[null,null,""]
[null,null,""]
[null,null,""]
[null,null,""]
[null,null,""]
[null,null,""]
[null,null,""]
[null,null,""]
[null,null,""]
[null,null,""]
[null,null,""]
[null,null,""]
[null,null,""]
[null,null,""]
[null,null,""]
[null,null,""]
[null,null,""]
[null,null,""]
[null,null,""]
[null,null,""]
[null,null,""]
[null,null,""]
[null,null,""]
[null,null,""]
[null,null,""]
[null,null,""]
[null,null,""]
[null,null,""]
[null,null,""]
[null,null,""]
[null,null,""]
[null,null,""]
[null,null,""]
[null,null,""]
[null,null,""]
[null,null,""]
[null,null,""]
[null,null,""]
[null,null,""]
[null,null,""]
[null,null,""]
[null,null,""]
[null,null,""]
[null,null,""]
[null,null,""]
[null,null,""]
[null,null,""]
[null,null,""]
[null,null,""]
[null,null,""]
[null,null,""]
[null,null,""]
[null,null,""]
[null,null,""]
[null,null,{"$f":"IF(B66=\"\",\"\",A66&\" \"&B66&\".dwg\")","v":""}]
[null,null,""]
[null,null,""]
[null,null,""]
[null,null,""]
[null,null,""]
[null,null,""]
[null,null,""]
[null,null,""]
[null,null,""]
[null,null,""]
[null,null,""]
[null,null,""]
[null,null,""]
[null,null,""]
[null,null,""]
[null,null,""]
[null,null,""]
[null,null,""]
[null,null,""]
[null,null,""]
[null,null,""]
[null,null,""]
[null,null,""]
[null,null,""]
[null,null,""]
[null,null,""]
[null,null,""]
[null,null,""]
[null,null,""]
[null,null,""]
[null,null,""]
[null,null,""]
[null,null,""]
[null,null,""]

{"sheet":"Mounts","index":2,"n_rows":3,"n_cols":3,"rows_kept":3,"cut":false,"hidden":false,"merged":[]}
["Mount Manufacturer","Mount Model","Antenna Mount Block DWG Name"]
["Ericsson","SXK1255394-2",{"$f":"IF(B2=\"\",\"\",A2&\" \"&B2&\".dwg\")","v":"Ericsson SXK1255394-2.dwg"}]
[null,null,{"$f":"IF(B3=\"\",\"\",A3&\" \"&B3&\".dwg\")","v":""}]

{"sheet":"Construction Details","index":3,"n_rows":12,"n_cols":3,"rows_kept":12,"cut":false,"hidden":false,"merged":[]}
["Construction Detail","Sub-Folder","Block DWG Name"]
["Typical Chain-Link Fence","Fence Details","CHAINLINK FENCE DETAIL.dwg"]
["Typical Wooden Fence","Fence Details","WOODEN FENCE DETAIL.dwg"]
["GPS Mounting and Grounding","GPS Detail","GPS ANTENNA DETAIL.dwg"]
["H-frame with posts","H-frame Details","H-FRAME WITH POSTS.dwg"]
["Wall mount","H-frame Details","WALL MOUNT DETAIL.dwg"]
["Air Antenna Mounting","Mounting Details","AIR ANTENNA MOUNTING DETAIL.dwg"]
["Antenna Mounting","Mounting Details","ANTENNA MOUNTING DETAIL.dwg"]
["RRU Mounting","Mounting Details","RRU MOUNTING DETAIL.dwg"]
["RRU Unistrut Mounting","Mounting Details","RRU UNISTRUT MOUNT.dwg"]
["Surge Mounting","Mounting Details","SURGE MOUNTING MOUNT.dwg"]
["Typical Mount Configuration","Mounting Details","TYPICAL MOUNT CONFIGURATION.dwg"]

{"sheet":"Equipment Cabinets & Racks","index":4,"n_rows":0,"n_cols":0,"rows_kept":0,"cut":false,"hidden":false,"merged":[]}

{"sheet":"Equipment Platforms","index":5,"n_rows":0,"n_cols":0,"rows_kept":0,"cut":false,"hidden":false,"merged":[]}

{"sheet":"Generators","index":6,"n_rows":0,"n_cols":0,"rows_kept":0,"cut":false,"hidden":false,"merged":[]}

{"sheet":"Towers","index":7,"n_rows":0,"n_cols":0,"rows_kept":0,"cut":false,"hidden":false,"merged":[]}

{"sheet":"Power Equipment","index":8,"n_rows":0,"n_cols":0,"rows_kept":0,"cut":false,"hidden":false,"merged":[]}